Cogmind - Beta 9.2 @@@ ROGUE MODE // 2019.12.16 @ 17:02:34 Player: spruce (@macklemurr) Result: Destroyed by S-10 Pest with Light Assault Rifle Performance ------------- Evolutions (1) 500 Regions Visited (3) 600 Robots Destroyed (7) 35 Value Destroyed (73) 73 Prototype IDs (2) 40 Alien Tech Used (0) 0 Bonus (0) 0 TOTAL SCORE: 1248 Bonus ------- None Cogmind --------- Core Integrity 0/400 Matter 154/300 Energy 52/100 System Corruption 0% Temperature Cool (0) Movement Core (50) Location -9/Materials Parts ------- > --- POWER (1) -------- (None) > --- PROPULSION (3) --- (None) > --- UTILITY (3) ------ Visual Processing Unit > --- WEAPON (2) ------- (None) > --- INVENTORY (4) ---- Improved Ion Engine VTOL Module VTOL Module Peak State ------------ > --- POWER ------------ Light Ion Engine > --- PROPULSION ------- Wheel Compact Wheel > --- UTILITY ---------- Small Storage Unit Visual Processing Unit > --- WEAPON ----------- Shotgun Bore Cannon > --- INVENTORY -------- Light Ion Engine VTOL Module VTOL Module VTOL Module VTOL Module Shotgun [Rating: 14] Favorites ----------- Power Light Ion Engine Engine Light Ion Engine Propulsion Compact Wheel Wheel Compact Wheel Flight Unit VTOL Module Utility Small Storage Unit Storage Small Storage Unit Processor Visual Processing Unit Weapon Shotgun Ballistic Gun Shotgun Ballistic Cannon Bore Cannon Special Weapon Welding Torch Build | -11 -10 -10 -9 ------- Run | Scr Mat Min Mat Slots Evolved 2 | . . . 2 Power . | . . . . Propulsion 1 | . . . 1 Utility 1 | . . . 1 Weapon . | . . . . Parts Attached 19 | 6 3 3 7 Power 2 | 1 . . 1 Engine 2 | 1 . . 1 Core . | . . . . Reactor . | . . . . Propulsion 6 | 2 . . 4 Treads . | . . . . Leg . | . . . . Wheel 2 | 2 . . . Hover . | . . . . Flight 4 | . . . 4 Utility 2 | 1 1 . . Device . | . . . . Storage 1 | 1 . . . Processor 1 | . 1 . . Hackware . | . . . . Protection . | . . . . Artifact . | . . . . Weapon 9 | 2 2 3 2 Energy Gun . | . . . . Energy Cannon . | . . . . Ballistic Gun 6 | 2 2 2 . Ballistic Cannon 1 | . . 1 . Launcher . | . . . . Special Weapon 2 | . . . 2 Impact Weapon . | . . . . Slashing Weapon . | . . . . Piercing Weapon . | . . . . Special Melee Weapon . | . . . . Unidentified Prototypes . | . . . . Parts Lost 11 | . . 3 8 Power 2 | . . 1 1 Propulsion 4 | . . 1 3 Utility 1 | . . . 1 Weapon 4 | . . 1 3 Highest Loss Streak 5 | . . 3 5 Average Slot Usage (%) 75 | . 96 93 44 Engine 8 | . 14 11 1 Wheel 17 | . 28 25 3 Flight 2 | . . . 6 Storage 12 | . 14 14 10 Processor 12 | . 10 14 11 Ballistic Gun 20 | . 28 25 10 Naked Turns . | . . . . Heaviest Build 13 | 10 13 13 10 Greatest Support 26 | 26 26 26 16 Greatest Overweight (x) 3 | . . . 3 Average Overweight (x) . | . . . . Largest Inventory Capacity 6 | 6 6 6 6 Average Capacity 5 | 4 6 6 5 Most Carried 6 | 5 6 6 5 Average Carried 4 | 2 5 5 3 Final Capacity 6 | 6 6 6 4 Final Carried 6 | 5 6 5 3 Class Distribution -------------------- 100% | Mutant Dominant Class ---------------- Mutant | -10/Materials Mutant | -10/Mines Mutant | -9/Materials Resources | -11 -10 -10 -9 ----------- Run | Scr Mat Min Mat Matter Collected 392 | 163 . 229 . Remotely . | . . . . Salvage Created 58 | . . 52 6 Parts 1 | . . . 1 Haulers Intercepted . | . . . . Recyclers Shooed . | . . . . Parts Field Recycled . | . . . . Retrieved Matter . | . . . . Parts Self-Destructed . | . . . . Prevented . | . . . . Kills | -11 -10 -10 -9 ------- Run | Scr Mat Min Mat Combat Hostiles Destroyed 7 | . . 6 1 Guns 7 | . . 6 1 Classes Destroyed 3 | . . 2 1 Swarmer 1 | . . . 1 Demolisher 1 | . . 1 . Assembled 5 | . . 5 . Best Kill Streak 4 | . . 4 1 Combat Bots Only 4 | . . 4 1 Max Kills in Single Turn 1 | . . 1 1 Gunslinging . | . . . . Exploded . | . . . . Melee . | . . . . Uniques/NPCs Destroyed . | . . . . Combat | -11 -10 -10 -9 -------- Run | Scr Mat Min Mat Damage Taken 1479 | . . 644 835 Core 625 | . . 222 403 Absorbed by Shields . | . . . . Core Remaining (%) 55 | 100 . 11 . Volleys Fired 29 | . . 24 5 Largest 2 | . . 2 1 Hottest 80 | . . 80 23 Shots Fired 51 | . . 46 5 Gun 46 | . . 42 4 Cannon 4 | . . 4 . Launcher . | . . . . Special 1 | . . . 1 Kinetic 50 | . . 46 4 Thermal 1 | . . . 1 Explosive . | . . . . Electromagnetic . | . . . . Robot Hit Streak 4 | . . 4 3 Robot Miss Streak 7 | . . 7 2 Penetration Max . | . . . . Secondary Targets 2 | . . 2 . Max Gunslinging Chain 1 | . . 1 . Shots Hit Robots 29 | . . 26 3 Core Hits 18 | . . 15 3 Critical Hits 1 | . . 1 . Critical Kills . | . . . . Critical Parts Destroyed . | . . . . Melee Attacks . | . . . . Impact . | . . . . Slashing . | . . . . Piercing . | . . . . Sneak Attacks . | . . . . Combat Hostiles . | . . . . Follow-up Attacks . | . . . . Damage Inflicted 437 | . . 380 57 Guns 369 | . . 319 50 Cannons 61 | . . 61 . Explosions . | . . . . Melee . | . . . . Ramming 7 | . . . 7 Kinetic 430 | . . 380 50 Thermal . | . . . . Explosive . | . . . . Electromagnetic . | . . . . Impact . | . . . . Slashing . | . . . . Piercing . | . . . . Highest Corruption . | . . . . Average Corruption . | . . . . Corruption Purged . | . . . . Overload Shots . | . . . . Overflow Damage 2 | . . 2 . Projectiles 2 | . . 2 . Explosions . | . . . . Melee . | . . . . Knockbacks 1 | . . 1 . Impact . | . . . . Kinetic 1 | . . 1 . Secondary . | . . . . Self-Inflicted Damage 2 | . . . 2 Shots . | . . . . Rammed 4 | . . . 4 Targets Rammed 4 | . . . 4 Kicked . | . . . . Crushed . | . . . . Highest Temperature 17 | . . 17 . Average Temperature 10 | . . 10 . Received Heat Transfer 188 | . . 20 168 Siege Activations . | . . . . Robots Corrupted . | . . . . Combat Hostiles . | . . . . Parts Fried . | . . . . Impact Corruptions . | . . . . Robots Melted . | . . . . Combat Hostiles . | . . . . Parts Melted . | . . . . Heat Transferred . | . . . . Parts Sabotaged . | . . . . Parts Stolen . | . . . . Parts Stripped . | . . . . Power Chain Reactions . | . . . . Missiles Intercepted . | . . . . Alert | -11 -10 -10 -9 ------- Run | Scr Mat Min Mat Peak Influence 81 | . 31 32 81 Average Influence 24 | . 4 26 43 Maximum Alert Level . | . . . . Low Security (%) 100 | 100 100 100 100 Level 1 . | . . . . Level 2 . | . . . . Level 3 . | . . . . Level 4 . | . . . . Level 5 . | . . . . High Security . | . . . . Max Security . | . . . . Squads Dispatched 1 | . . . 1 Investigation 1 | . . . 1 Extermination . | . . . . Reinforcement . | . . . . Assault . | . . . . Garrison . | . . . . Intercept . | . . . . Construction Impeded . | . . . . Haulers Reinforced . | . . . . Stealth | -11 -10 -10 -9 --------- Run | Scr Mat Min Mat Distress Signals . | . . . . Communications Jammed . | . . . . Distress Signals . | . . . . Times Spotted 37 | . 1 15 21 Peak Tracking Total 12 | . 2 12 12 Tactical Retreats 6 | . . 2 4 Traps | -11 -10 -10 -9 ------- Run | Scr Mat Min Mat Traps Triggered 1 | . . . 1 Indirectly . | . . . . Trap Hack Attempts . | . . . . Triggered . | . . . . Disarmed 6 | . . . 6 Reprogrammed . | . . . . Reused . | . . . . Traps Extracted . | . . . . Installed . | . . . . Triggered . | . . . . Machines | -11 -10 -10 -9 ---------- Run | Scr Mat Min Mat Machines Disabled 1 | . . 1 . Max in Single Turn 1 | . . 1 . Machines Sabotaged . | . . . . Garrisons Compromised . | . . . . Overloaded Fab Kills . | . . . . Fab Network Shutdowns . | . . . . Hacking | -11 -10 -10 -9 --------- Run | Scr Mat Min Mat Machines Accessed 3 | . 1 . 2 Terminals 3 | . 1 . 2 Fabricators . | . . . . Repair Stations . | . . . . Recycling Units . | . . . . Scanalyzers . | . . . . Garrison Access . | . . . . Total Hacks 7 | . 2 . 5 Successful 6 | . 1 . 5 Failed 1 | . 1 . . Catastrophic . | . . . . Database Lockouts . | . . . . Manual 4 | . 2 . 2 Terminals 7 | . 2 . 5 Fabricators . | . . . . Repair Stations . | . . . . Recycling Units . | . . . . Scanalyzers . | . . . . Garrison Access . | . . . . Terminal Hacks 6 | . 1 . 5 Prototype ID Bank 1 | . . . 1 Branch Access Points 2 | . 1 . 1 Emergency Access Points 1 | . . . 1 Disarm Traps 1 | . . . 1 Zone Layout 1 | . . . 1 Fabricator Hacks . | . . . . Repair Station Hacks . | . . . . Recycling Unit Hacks . | . . . . Scanalyzer . | . . . . Garrison Access Hacks . | . . . . Unauthorized Hacks . | . . . . Terminals . | . . . . Fabricators . | . . . . Repair Stations . | . . . . Recycling Units . | . . . . Scanalyzers . | . . . . Garrison Access . | . . . . Data Cores Recovered . | . . . . Used . | . . . . Hacking Detections 2 | . 1 . 1 Full Trace Events . | . . . . Feedback Events . | . . . . Feedback Blocked . | . . . . Robot Schematics Acquired . | . . . . Robots Built . | . . . . Matter . | . . . . Time . | . . . . Total Robot Build Rating . | . . . . Part Schematics Acquired . | . . . . Parts Built . | . . . . Matter . | . . . . Time . | . . . . Total Part Build Rating . | . . . . Parts Repaired . | . . . . Time . | . . . . Parts Recycled . | . . . . Recycled Matter . | . . . . Retrieved Matter . | . . . . Retrieved Components . | . . . . Parts Scanalyzed . | . . . . Part Schematics Acquired . | . . . . Parts Damaged . | . . . . Bothacking | -11 -10 -10 -9 ------------ Run | Scr Mat Min Mat Used RIF Installer . | . . . . Robots Hacked . | . . . . Non-combat . | . . . . Combat . | . . . . Robot Hacks Applied . | . . . . Relay Couplers Released . | . . . . Robots Rewired . | . . . . Allies Hacked . | . . . . Hacks Repelled . | . . . . Allies | -11 -10 -10 -9 -------- Run | Scr Mat Min Mat Total Allies . | . . . . Largest Group . | . . . . Highest-Rated Group . | . . . . Highest-Rated Ally . | . . . . Total Orders . | . . . . Ally Attacks . | . . . . Total Damage . | . . . . Kills . | . . . . Allies Corrupted . | . . . . Allies Melted . | . . . . Intel | -11 -10 -10 -9 ------- Run | Scr Mat Min Mat Robot Analysis Total . | . . . . Derelict Logs Recovered . | . . . . Drone Launches . | . . . . Drone Recoveries . | . . . . Exploration | -11 -10 -10 -9 ------------- Run | Scr Mat Min Mat Turns Passed 491 | 60 82 190 159 Spaces Moved 464 | 55 78 103 228 Core 35 | 21 . . 14 Treads . | . . . . Legs . | . . . . Wheels 267 | 34 78 103 52 Hover . | . . . . Flight 162 | . . . 162 Fastest Speed 37 | 50 90 90 37 Average Speed 72 | 74 90 91 57 Slowest Speed 200 | 90 90 100 200 Overloaded Moves . | . . . . Propulsion Burnouts . | . . . . Robots Hopped 6 | . . . 6 Cave-ins Triggered . | . . . . Exploration Rate (%) 19 | 4 21 30 24 Regions Visited 3 Branch Regions 1 Pre-discovered Areas . | . . . . Known Exits Taken 1 | . 1 . . Unknown Exits Taken 2 | 1 . 1 . Scrap Searched 1 | . . 1 . Spaces Dug . | . . . . Terrain Destroyed 1 | . . 1 . Melee . | . . . . Projectile 1 | . . 1 . AOE . | . . . . Actions | -11 -10 -10 -9 --------- Run | Scr Mat Min Mat Total 561 | 73 91 151 246 Wait 22 | . . 20 2 Move 449 | 54 77 102 216 Hop 6 | . . . 6 Pick Up 20 | 11 5 1 3 Fast Attach 5 | 2 3 . . Attach 12 | 4 . 1 7 Detach 2 | . . . 2 Swap 2 | . . 2 . Drop 10 | 2 6 1 1 Fire 29 | . . 24 5 Melee . | . . . . Ram 4 | . . . 4 Kick . | . . . . Crush . | . . . . Escape Stasis . | . . . . Rewire . | . . . . Trap . | . . . . Miscellaneous . | . . . . Route ------- -11/Scrapyard -10/Materials (discovered 2 exits: *Min x2) -10/Mines (discovered 2 exits: *Mat x2) -9/Materials (discovered 2 exits: [*Mat] / Min) History --------- Turn | Location | Event 16 | -11/Scrapyard | Discovered new exit (range 15) 61 | -11/Scrapyard | Entered Materials 134 | -10/Materials | Identified exit to Mines 143 | -10/Materials | Entered Mines 144 | -10/Mines | Assembled infested the area 146 | -10/Mines | Met a Derelict bent on vengeance 149 | -10/Mines | Assisted by a Guerilla fighting off Assembled 306 | -10/Mines | Core integrity fell below 50% 308 | -10/Mines | Build established: Mutant 313 | -10/Mines | Core integrity fell below 20% 319 | -10/Mines | Discovered new exit (range 10) 320 | -10/Mines | Discovered new exit (range 13) 333 | -10/Mines | Entered Materials 333 | -9/Materials | Evolved 2 slots: Propulsion x1, Utility x1 338 | -9/Materials | Lost 3 parts (1p1n1w) 441 | -9/Materials | Identified exit to Mines 462 | -9/Materials | Core integrity fell below 50% 471 | -9/Materials | Discovered new exit (range 16) 480 | -9/Materials | Core integrity fell below 20% 492 | -9/Materials | Destroyed by S-10 Pest with Light Assault Rifle Last Messages --------------- Visual Processing Unit temporarily disabled. Acquired Imp. Ion Engine. Connecting with Terminal... >>Prototypes Downloading prototype IDs... Imp. Assault Rifle Imp. Flight Unit >>Access(Branch) Found 1 branch access point: (85,15) Mines Map updated. VTOL Module destroyed. EXIT=FOUND Door malfunctions. VTOL Module destroyed. Acquired Welding Torch. Slammed into Y-45 Defender. Welding Torch destroyed. Sml. Storage Unit destroyed. Welding Torch destroyed. Map ----- +----------------------------------------------------+ | | | | | | | ?????????????????????????????????????????????????? | | ?????????????????????????????????????????????????? | | ?????????????????????????????????????????????????? | | ?????????????????????????????????????????????????? | | ?????????????????????????????????????????????????? | | ?????????????????????????????????????????????????? | | #????????????????????????????????????????????????? | | ????????????????????????????????????????????????? | | ?????????????????????????????????????????????????? | | ?????????????????????????????????????????????????? | | ?????????????????????????????????????????????????? | | ???????????????#####?######??????????????????????? | | ???????????????# #? #??????????????????????? | | ???????????????# < # """ #??????????????????????? | | ???????????????# # """ #??????????????????????? | | ???????????????+ + """ #??????????????????????? | | ???????????????# # """ #??????????????????????? | | ???????????????# # #??????????????????????? | | ???????????????# ########??????????????????????? | | ???????????????# # %|| #??????????????????????? | | ????#??????????# # |Y ##?????????????????????? | | ??? #??????????# s# | [ #?????????????????????? | | #???# ??+ s @##?????????????????????? | | #/###???#""" ??# g# "Y" #??????????????????????? | | #?????#""" ??# # """ #??????????????????????? | | #?????#""" ??# ########??????????????????????? | | ####????# ??# #?###########?????????????????? | | ##?########## # ?????????????????? | | #?# ## # """"???????????????????? | | ##?# """ ## + !! ""T"???????????????????? | | #??# """ ## # !% #????????????????? | | #??# """ ## # = #????????????????? | | #??# ## ########## ###????????????????? | | #??#####+### #????????????????????????????? | | ######## #????????????????????????????? | | / #????????????????????????????? | | ######## #????????????????????????????? | | #??????# #### #????????????????????????????? | | #??????# ##?#######????????????????????????????? | | #??????# # ????????????????????????????????????? | | #??????# + ????????????????????????????????????? | | #??????# # ????????????????????????????????????? | | #??????# # ????????????????????????????????????? | | ######## # ????????????????????????????????????? | | ##????????????????????????????????????? | | #?????????????????????????????????????? | | #?????????????????????????????????????? | +----------------------------------------------------+ Best States ------------- Heat Dissipation 28 Energy Generation 10 Energy Capacity 125 Matter Stores 212 Matter Capacity 300 Sight Range 18 Terrain Scan Density 10 Evasion (%) 62 Item Schematics ----------------- None Robot Schematics ------------------ None Fabricated ------------ Nothing Alien Tech Used ----------------- None Achievements -------------- None Challenges ------------ None Game ------ Seed DeliveryWeightNullifier Manual? 0 Play Time 00:08:51 Cumulative 63.9 hours Start 2019.12.16 @ 16:56:25 End 2019.12.16 @ 17:02:34 Sessions 1 Manual Loads 0 Difficulty Rogue Special Mode None Game No. 179 Rogue 179 Adventurer 0 Explorer 0 Win Type - Total 1 Types 1/0/0/0/0/0/0 Lore% 65 Gallery% 63 Achievement% 51 Wizard Run 0 Options --------- ASCII 0 Keyboard 0 Movement Numpad Keybinds 0 Fullscreen 1 Font 24/Smallcaps Map View 76x50 Tactical HUD 0 Map Filters NONE Filters NONE Steam 1 RUN: 4a5599a0-b1e0-4a5d-bbd2-da6cd11261bb